bitfinex-derivatives/quotes_BNBF0:USTF0_20250511
["timestamp","ask_amount","ask_price","bid_price","bid_amount"]
[1746935300111,0.24594493,664.4,663.56,1.14082397]
[1746935300711,0.24594493,664.4,663.57,1.14082397]
[1746935301007,0.24594493,664.4,663.58,1.56282397]
[1746935301414,0.24594493,664.4,663.59,1.14082397]
[1746935302111,0.24594493,664.4,663.6,1.14082397]
[1746935302311,0.24594493,664.4,663.61,1.14082397]
[1746935302510,0.24594493,664.4,663.62,1.14082397]
[1746935303005,0.24594493,664.4,663.63,1.14082397]
[1746935303307,0.24594493,664.4,663.64,1.14082397]
[1746935304011,0.24594493,664.4,663.65,1.14082397]
[1746935304310,0.24594493,664.4,663.66,1.14082397]
[1746935304809,0.24594493,664.4,663.67,1.14082397]
[1746935305414,0.24594493,664.4,663.58,0.422]
[1746935305913,0.24594493,664.4,663.59,1.14131355]
[1746935306515,0.24594493,664.4,663.6,1.14131355]
[1746935306715,0.24594493,664.4,663.61,1.14131355]
[1746935307216,0.24594493,664.4,663.62,1.14131355]
[1746935310318,0.30101894,664.41,663.62,1.14131355]
[1746935310513,0.24594668,664.4,663.63,1.14131355]
[1746935311017,0.24594668,664.4,663.64,1.14131355]
[1746935311314,0.24594668,664.4,663.65,1.14131355]
[1746935311814,0.24594668,664.4,663.66,1.14131355]
[1746935312220,0.24594668,664.4,663.67,1.14131355]
[1746935312819,0.24594668,664.4,663.6,0.26204523]
[1746935313122,0.24594668,664.4,663.61,1.14094304]
[1746935313421,0.24594668,664.4,663.62,1.14094304]
[1746935314021,0.24594668,664.4,663.63,1.14094304]
[1746935314522,0.24594668,664.4,663.61,0.26204523]
[1746935314919,0.24594668,664.4,663.62,1.14018076]
[1746935315417,0.24594668,664.4,663.63,1.14018076]
[1746935315816,0.24594668,664.4,663.61,0.26204523]
[1746935316218,0.24594668,664.4,663.62,1.13971338]
[1746935316714,0.24594668,664.4,663.61,0.26204523]
[1746935317222,0.24594668,664.4,663.58,0.422]
[1746935317421,0.24594668,664.4,663.61,0.26205017]
[1746935317617,0.24594668,664.4,663.62,1.13931048]
[1746935318223,0.24594668,664.4,663.61,0.26205017]
[1746935319124,0.30101894,664.41,663.62,1.13928708]
[1746935319325,0.245946,664.4,663.62,1.13928708]
[1746935319521,0.245946,664.4,663.61,0.26205017]
[1746935320119,0.245946,664.4,663.58,0.422]
[1746935320325,0.245946,664.4,663.59,1.13934129]
[1746935320625,0.245946,664.4,663.61,0.26205017]
[1746935321227,0.245946,664.4,663.62,1.13934129]
[1746935321826,0.30101894,664.41,663.63,1.13934129]
[1746935322027,0.2459467,664.39,663.63,1.13934129]
[1746935322220,0.2459467,664.39,663.61,0.26205017]
[1746935322425,0.2459467,664.4,663.61,0.26205017]
[1746935322625,0.2459467,664.4,663.62,1.13966546]
[1746935323028,0.2459467,664.4,663.63,1.13966546]
[1746935323729,0.2459467,664.4,663.64,1.13966546]
[1746935323929,0.2459467,664.4,663.61,0.26204523]
[1746935324528,0.2459467,664.4,663.62,1.1398644]
[1746935324830,0.2459467,664.4,663.63,1.1398644]
[1746935325224,0.2459467,664.4,663.64,1.1398644]
[1746935325727,0.30101894,664.41,663.65,1.1398644]
[1746935326030,0.24594638,664.4,663.66,1.1398644]
[1746935326630,0.24594638,664.4,663.67,1.1398644]
[1746935326929,0.24594638,664.4,663.61,0.26204227]
[1746935327627,0.24594638,664.4,663.62,1.13969733]
[1746935328030,0.24594638,664.4,663.63,1.13969733]
[1746935328430,0.24594638,664.4,663.64,1.13969733]
[1746935328928,0.24594638,664.4,663.65,1.13969733]
[1746935329127,0.24594638,664.4,663.66,1.13969733]
[1746935329627,0.24594638,664.4,663.67,1.13969733]
[1746935330231,0.24594638,664.4,663.68,1.13969733]
[1746935330633,0.24594638,664.4,663.61,0.26204227]
[1746935331231,0.24594638,664.4,663.62,1.14048734]
[1746935332033,0.24594638,664.4,663.63,1.14048734]
[1746935332632,0.24594638,664.4,663.64,1.14048734]
[1746935332832,0.24594638,664.4,663.65,1.14048734]
[1746935333731,0.24594638,664.4,663.66,1.14048734]
[1746935334136,0.24594638,664.4,663.67,1.14048734]
[1746935334436,0.24594638,664.4,663.68,0.439]
[1746935341137,0.24594638,664.39,663.68,0.439]
[1746935341440,0.24594638,664.38,663.68,0.439]
[1746935341641,0.24594638,664.37,663.68,0.439]
[1746935342041,0.24594638,664.36,663.68,0.439]
[1746935342342,0.24594638,664.35,663.68,0.439]
[1746935342637,0.24594638,664.34,663.68,0.439]
[1746935343037,0.24594638,664.33,663.68,0.439]
[1746935343238,0.24594638,664.32,663.68,0.439]
[1746935343544,0.24594638,664.31,663.68,0.439]
[1746935344145,0.24594638,664.3,663.68,0.439]
[1746935344644,0.24594638,664.29,663.68,0.439]
[1746935344947,0.24594638,664.4,663.68,0.439]
[1746935345244,0.30101894,664.41,663.68,0.439]
[1746935345940,0.24631491,664.4,663.68,0.439]
[1746935346146,0.30101894,664.41,663.68,0.439]
[1746935346338,0.24626787,664.4,663.68,0.439]
[1746935346644,0.24626787,664.39,663.68,0.439]
[1746935347147,0.24626787,664.38,663.68,0.439]
[1746935347445,0.24626787,664.37,663.68,0.439]
[1746935347845,0.24626787,664.36,663.68,0.439]
[1746935348148,0.24626787,664.35,663.68,0.439]
[1746935348541,0.24626787,664.34,663.68,0.439]
[1746935348746,0.24626787,664.33,663.68,0.439]
[1746935349043,0.24626787,664.32,663.68,0.439]
[1746935349243,0.24626787,664.31,663.68,0.439]
[1746935349550,0.24626787,664.3,663.68,0.439]
[1746935349950,0.24626787,664.29,663.68,0.439]
[1746935350345,0.24626787,664.28,663.68,0.439]
[1746935350748,0.24626787,664.4,663.68,0.439]
[1746935350947,0.24626787,664.39,663.68,0.439]
[1746935351351,0.24626787,664.38,663.68,0.439]
[1746935351851,0.24626787,664.37,663.68,0.439]
[1746935352653,0.24626787,664.36,663.68,0.439]
[1746935353050,0.24626787,664.35,663.68,0.439]
[1746935353547,0.24626787,664.34,663.68,0.439]
[1746935353752,0.24626787,664.33,663.68,0.439]
[1746935354253,0.24626787,664.32,663.68,0.439]
[1746935354453,0.30101894,664.41,663.68,0.439]
[1746935354854,0.24628625,664.4,663.68,0.439]
[1746935355155,0.24628625,664.39,663.68,0.439]
[1746935355456,0.24628625,664.38,663.68,0.439]
[1746935355649,0.24628625,664.38,663.43,0.3014636]
[1746935355848,0.24628625,664.37,663.43,0.3014636]
[1746935356255,0.24628625,664.36,663.43,0.3014636]
[1746935356654,0.24628625,664.35,663.43,0.3014636]
[1746935356950,0.24628625,664.34,663.43,0.3014636]
[1746935357255,0.24628625,664.33,663.43,0.3014636]
[1746935357555,0.24628625,664.32,663.43,0.3014636]
[1746935357751,0.24628625,664.31,663.43,0.3014636]
[1746935358257,0.24628625,664.3,663.43,0.3014636]
[1746935358452,0.24628625,664.29,663.43,0.3014636]
[1746935359054,0.24628625,664.4,663.43,0.3014636]
[1746935359356,0.24628625,664.39,663.43,0.3014636]
[1746935359857,0.24628625,664.4,663.43,0.3014636]
[1746935360453,0.24628625,664.39,663.43,0.3014636]
[1746935360858,0.24628625,664.38,663.43,0.3014636]
[1746935361158,0.24628625,664.4,663.43,0.3014636]
[1746935362960,0.24628625,664.39,663.43,0.3014636]
[1746935363361,0.24628625,664.38,663.43,0.3014636]
[1746935363661,0.24628625,664.37,663.43,0.3014636]
[1746935364061,0.24628625,664.36,663.43,0.3014636]
[1746935364262,0.24628625,664.35,663.43,0.3014636]
[1746935364459,0.30105519,664.33,663.43,0.3014636]
[1746935364962,0.24628625,664.32,663.43,0.3014636]
[1746935365466,0.24628625,664.31,663.43,0.3014636]
[1746935365764,0.24628625,664.3,663.43,0.3014636]
[1746935366163,0.24628625,664.29,663.43,0.3014636]
[1746935366464,0.24628625,664.28,663.43,0.3014636]
[1746935366963,0.24628625,664.27,663.43,0.3014636]
[1746935367459,0.24628625,664.26,663.43,0.3014636]
[1746935367763,0.24628625,664.25,663.43,0.3014636]
[1746935368064,0.24628625,664.24,663.43,0.3014636]
[1746935368464,0.24628625,664.23,663.43,0.3014636]
[1746935369065,0.24628625,664.32,663.43,0.3014636]
[1746935369370,0.24628625,664.22,663.43,0.3014636]
[1746935369670,0.24628625,664.32,663.43,0.3014636]
[1746935370572,0.30106879,664.3,663.43,0.3014636]
[1746935371572,0.24628625,664.29,663.43,0.3014636]
[1746935371773,0.30108239,664.27,663.43,0.3014636]
[1746935372677,0.24628625,664.26,663.43,0.3014636]
[1746935372873,0.30109598,664.24,663.43,0.3014636]
[1746935373573,0.24628625,664.23,663.43,0.3014636]
[1746935373775,0.30110505,664.22,663.43,0.3014636]
[1746935374074,1.93593394,664.19,663.43,0.3014636]
[1746935374273,0.30112318,664.18,663.43,0.3014636]
[1746935374469,0.54740943,664.18,663.43,0.3014636]
[1746935374977,0.24628625,664.17,663.43,0.3014636]
[1746935375171,0.30113225,664.16,663.43,0.3014636]
[1746935375869,0.24628625,664.15,663.43,0.3014636]
[1746935376074,0.30114132,664.14,663.43,0.3014636]
[1746935376377,0.24628625,664.13,663.43,0.3014636]
[1746935376580,0.30115039,664.12,663.43,0.3014636]
[1746935376978,0.24628625,664.11,663.43,0.3014636]
[1746935377273,0.30115946,664.1,663.43,0.3014636]
[1746935377574,0.24628625,664.09,663.43,0.3014636]
[1746935377778,0.30116853,664.08,663.43,0.3014636]
[1746935378278,0.24628625,664.07,663.43,0.3014636]
[1746935378578,0.3011776,664.06,663.43,0.3014636]
[1746935379280,0.24625148,664.05,663.43,0.3014636]
[1746935379581,0.54743815,664.04,663.43,0.3014636]
[1746935379781,0.30119121,664.03,663.43,0.3014636]
[1746935380080,0.54744269,664.03,663.43,0.3014636]
[1746935380281,0.24625148,664.02,663.43,0.3014636]
[1746935380581,0.54745176,664.01,663.43,0.3014636]
[1746935380779,0.54745629,664.0,663.43,0.3014636]
[1746935380975,0.30120935,663.99,663.43,0.3014636]
[1746935381282,0.54746083,663.99,663.43,0.3014636]
[1746935381581,0.24625148,663.98,663.43,0.3014636]
[1746935381781,0.30121842,663.97,663.43,0.3014636]
[1746935382183,1.93593394,663.73,663.43,0.3014636]
[1746935382482,0.24625148,663.72,663.43,0.3014636]
[1746935383986,0.24625148,663.74,663.43,0.3014636]
[1746935386088,0.24625148,663.83,663.43,0.3014636]
[1746935386289,0.30128649,663.82,663.43,0.3014636]
[1746935386788,0.24625148,663.81,663.43,0.3014636]
[1746935386987,0.30129557,663.8,663.43,0.3014636]
[1746935387387,0.24625148,663.79,663.43,0.3014636]
[1746935387589,0.30130464,663.78,663.43,0.3014636]
[1746935388286,0.24625148,663.77,663.43,0.3014636]
[1746935388488,0.30130464,663.78,663.43,0.3014636]
[1746935391289,0.24615116,663.77,663.43,0.3014636]
[1746935391889,0.30130464,663.78,663.43,0.3014636]
[1746935411899,0.24613023,663.77,663.43,0.3014636]
[1746935418107,0.30130464,663.78,663.43,0.3014636]
[1746935455022,0.24612076,663.77,663.43,0.3014636]
[1746935455626,0.30130464,663.78,663.43,0.3014636]
[1746935456225,0.24612166,663.77,663.43,0.3014636]
[1746935457427,0.30130464,663.78,663.43,0.3014636]
[1746935501156,0.24609556,663.77,663.43,0.3014636]
[1746935502954,0.30130464,663.78,663.43,0.3014636]
[1746935537282,0.2461632,663.77,663.43,0.3014636]
[1746935548888,0.30130464,663.78,663.43,0.3014636]
[1746935549088,0.24617235,663.77,663.43,0.3014636]
[1746935552494,0.30130464,663.78,663.43,0.3014636]
[1746935552889,0.24616852,663.77,663.43,0.3014636]
[1746935564498,0.30130464,663.78,663.43,0.3014636]
[1746935570200,0.24623823,663.77,663.43,0.3014636]
[1746935578615,0.30130464,663.78,663.43,0.3014636]
[1746935579115,0.24629402,663.77,663.43,0.3014636]
[1746935580819,0.30131372,663.76,663.43,0.3014636]
[1746935581216,0.24629402,663.75,663.43,0.3014636]
[1746935582217,0.30131372,663.76,663.43,0.3014636]
[1746935582619,0.24636495,663.75,663.43,0.3014636]
[1746935582917,0.24636495,663.74,663.43,0.3014636]
[1746935583218,0.24636495,663.75,663.43,0.3014636]
[1746935585820,0.3013228,663.74,663.43,0.3014636]
[1746935586021,0.24636495,663.73,663.43,0.3014636]
[1746935590726,0.3013228,663.74,663.43,0.3014636]
[1746935591027,0.24638458,663.73,663.43,0.3014636]
[1746935591329,0.3013228,663.74,663.43,0.3014636]
[1746935591628,0.24637954,663.73,663.43,0.3014636]
[1746935594628,0.30133188,663.72,663.43,0.3014636]
[1746935594929,0.24637954,663.71,663.43,0.3014636]
[1746935595122,0.30134096,663.7,663.43,0.3014636]
[1746935595534,0.24637954,663.69,663.43,0.3014636]
[1746935595824,0.30134096,663.7,663.43,0.3014636]
[1746935596231,0.24640456,663.69,663.43,0.3014636]
[1746935596931,0.30135004,663.68,663.43,0.3014636]
[1746935597128,0.24640456,663.67,663.43,0.3014636]
[1746935598131,0.30135912,663.66,663.43,0.3014636]
[1746935598427,0.24640456,663.65,663.43,0.3014636]
[1746935598624,0.30136821,663.64,663.43,0.3014636]
[1746935598826,0.24640456,663.63,663.43,0.3014636]
[1746935599333,0.30137729,663.62,663.43,0.3014636]
[1746935599833,0.24640456,663.61,663.43,0.3014636]
[1746935600234,0.30138637,663.6,663.43,0.3014636]
[1746935601329,0.24640456,663.59,663.43,0.3014636]
[1746935602130,0.30139546,663.58,663.43,0.3014636]
[1746935602331,0.24640456,663.57,663.43,0.3014636]
[1746935603133,0.30140454,663.56,663.43,0.3014636]
[1746935604032,0.24640456,663.55,663.43,0.3014636]
[1746935604337,0.30141362,663.54,663.43,0.3014636]
[1746935604737,0.24640456,663.53,663.43,0.3014636]
[1746935605038,0.30142271,663.52,663.43,0.3014636]
[1746935605536,0.24640456,663.51,663.43,0.3014636]
[1746935605938,0.3014318,663.5,663.43,0.3014636]
[1746935606437,0.24640456,663.49,663.43,0.3014636]
[1746935606737,0.30144088,663.48,663.43,0.3014636]
[1746935607241,0.24640456,663.47,663.43,0.3014636]
[1746935612342,0.30144088,663.48,663.43,0.3014636]
[1746935612644,0.24640513,663.47,663.43,0.3014636]
[1746935616845,0.54785056,663.47,663.43,0.3014636]
[1746935617045,0.30144997,663.46,663.43,0.3014636]
[1746935617448,0.24640513,663.45,663.43,0.3014636]
[1746935617647,0.54785964,663.45,663.43,0.3014636]
[1746935618047,0.24640513,663.44,663.43,0.3014636]
[1746935618548,0.54786419,663.44,663.43,0.3014636]
[1746935627652,0.30145906,663.44,663.43,0.3014636]
[1746935631552,0.54775824,663.44,663.43,0.3014636]
[1746935635654,0.30145906,663.44,663.43,0.3014636]
[1746935635955,0.54775478,663.44,663.43,0.3014636]
[1746935639952,0.54775478,663.44,663.42,0.16722268]
[1746935640459,0.24629572,663.43,663.42,0.16722268]
[1746935642863,0.30145906,663.44,663.42,0.16722268]
[1746935646564,0.24632606,663.43,663.42,0.16722268]
[1746935649562,0.30145906,663.44,663.42,0.16722268]
[1746935649862,0.24623393,663.43,663.42,0.16722268]
[1746935653460,0.24623393,663.43,663.42,0.04771859]
[1746935655067,0.30145906,663.44,663.42,0.04771859]
[1746935655267,0.24625024,663.43,663.42,0.04771859]
[1746935658468,0.30145906,663.44,663.42,0.04771859]
[1746935658770,0.24628106,663.43,663.42,0.04771859]
[1746935659767,0.24628106,663.43,663.42,0.00517779]
[1746935671469,0.24628106,663.43,663.41,0.0890291]
[1746935674176,0.24628106,663.43,663.41,0.00976854]
[1746935681679,0.24628106,663.43,663.4,0.09214102]
[1746935682179,0.30145906,663.44,663.4,0.09214102]
[1746935682578,0.24603821,663.43,663.4,0.09214102]
[1746935683680,0.30146814,663.42,663.4,0.09214102]
[1746935684079,0.24603821,663.41,663.4,0.09214102]
[1746935684279,0.24603821,663.41,663.4,0.01029266]
[1746935685381,0.5475109,663.41,663.4,0.01029266]
[1746935691479,0.5475109,663.41,663.4,0.00308241]
[1746935695284,0.5475109,663.41,662.81,0.372]
[1746935695885,0.54751544,663.4,662.81,0.372]
[1746935696283,0.24603821,663.39,662.81,0.372]
[1746935696585,0.30148632,663.38,662.81,0.372]
[1746935696980,0.24603821,663.37,662.81,0.372]
[1746935697186,0.30149541,663.36,662.81,0.372]
[1746935697685,0.24603821,663.35,662.81,0.372]
[1746935697887,0.3015045,663.34,662.81,0.372]
[1746935698387,0.24603821,663.33,662.81,0.372]
[1746935698582,0.30151359,663.32,662.81,0.372]
[1746935698883,0.30151359,663.32,660.5,0.94598661]
[1746935699186,0.24603821,663.31,660.5,0.94598661]
[1746935699387,0.30152723,663.29,660.5,0.94598661]
[1746935699686,0.30152723,663.29,662.1,0.2627595]
[1746935700084,0.24603821,663.28,662.1,0.2627595]
[1746935701491,0.24603821,663.28,660.46,0.94598661]
[1746935702090,0.24603821,663.28,662.23,0.37]
[1746935702789,0.30152723,663.29,662.23,0.37]
[1746935703192,0.2459431,663.28,662.23,0.37]
[1746935713100,0.2459431,663.28,661.99,0.26261376]
[1746935713695,0.30154087,663.26,661.99,0.26261376]
[1746935714500,0.24582784,663.25,661.99,0.26261376]
[1746935714700,0.30155451,663.23,661.99,0.26261376]
[1746935715000,0.24582784,663.22,661.99,0.26261376]
[1746935715295,0.30156815,663.2,661.99,0.26261376]
[1746935715700,0.24582784,663.19,661.99,0.26261376]
[1746935716196,0.30158179,663.17,661.99,0.26261376]
[1746935716400,0.24582784,663.16,660.49,0.94598661]
[1746935716600,0.30159543,663.14,662.0,0.26264052]
[1746935716796,0.30159543,663.14,662.23,0.418]
[1746935717103,0.24582784,663.13,662.23,0.418]
[1746935717403,0.30160908,663.11,662.23,0.418]
[1746935717900,0.24582784,663.1,662.23,0.418]
[1746935718105,0.30162273,663.08,662.23,0.418]
[1746935719106,0.24582784,663.07,662.23,0.418]
[1746935722807,0.30162273,663.08,662.23,0.418]
[1746935723208,0.24575164,663.07,662.23,0.418]
[1746935723407,0.30163637,663.05,662.23,0.418]
[1746935724008,0.24575164,663.04,662.23,0.418]
[1746935725409,0.30165002,663.02,662.23,0.418]
[1746935725909,0.24575164,663.01,662.23,0.418]
[1746935726110,0.30165912,663.0,662.23,0.418]
[1746935726408,0.24575164,662.99,662.23,0.418]
[1746935726610,0.30166822,662.98,662.23,0.418]
[1746935727310,0.24575164,662.97,662.23,0.418]
[1746935727511,0.30167732,662.96,662.23,0.418]
[1746935727811,0.24575164,662.95,662.23,0.418]
[1746935728311,0.30168642,662.94,662.23,0.418]
[1746935728913,0.24575164,662.93,662.23,0.418]
[1746935729414,0.30169552,662.92,662.23,0.418]
[1746935729612,0.24575164,662.91,662.23,0.418]
[1746935730709,0.30169552,662.92,662.23,0.418]
[1746935731215,0.24575674,662.91,662.23,0.418]
[1746935731414,0.30170463,662.9,662.23,0.418]
[1746935731815,0.24575674,662.89,662.23,0.418]
[1746935732016,0.30171373,662.88,662.23,0.418]
[1746935732518,0.24576001,662.87,662.23,0.418]
[1746935732716,0.30172283,662.86,662.23,0.418]
[1746935733411,0.24576001,662.85,662.23,0.418]
[1746935733620,0.30173194,662.84,662.23,0.418]
[1746935734110,0.24576001,662.83,662.23,0.418]
[1746935734313,0.30174104,662.82,662.23,0.418]
[1746935734916,0.24576001,662.81,662.23,0.418]
[1746935736519,0.30174104,662.82,662.23,0.418]
[1746935737315,0.24575846,662.81,662.23,0.418]
[1746935737520,0.30174104,662.82,662.23,0.418]
[1746935737720,0.30174104,662.82,662.24,1.1727275]
[1746935738120,0.30174104,662.82,662.25,1.1727275]
[1746935738419,0.30174104,662.82,662.26,1.1727275]
[1746935738913,0.30174104,662.82,662.08,0.2625355]
[1746935739622,0.30174104,662.82,662.23,1.17254733]
[1746935740216,0.30174104,662.82,662.24,1.17254733]
[1746935740619,0.30174104,662.82,662.25,1.17254733]
[1746935740821,0.30174104,662.82,662.26,0.321]
[1746935741022,0.30174104,662.82,662.27,1.17254733]
[1746935741322,0.30174104,662.82,662.26,0.321]
[1746935757838,0.30174104,662.82,662.04,0.26254541]
[1746935758438,0.30174104,662.82,660.23,0.94598661]
[1746935759640,0.30174104,662.82,662.1,0.26272082]
[1746935759841,0.30174104,662.82,662.23,1.17134372]
[1746935760335,0.30174104,662.82,662.24,1.17134372]
[1746935760839,0.30174104,662.82,662.25,1.17134372]
[1746935761137,0.30174104,662.82,662.26,1.17134372]
[1746935761440,0.30174104,662.82,662.27,1.17134372]
[1746935761642,0.30174104,662.82,662.28,1.17134372]
[1746935761841,0.30174104,662.82,662.28,1.50934372]
[1746935762041,0.30174104,662.82,662.29,1.17134372]
[1746935762236,0.30174104,662.82,662.3,1.17134372]
[1746935762740,0.30174104,662.82,662.31,1.17134372]
[1746935763642,0.30174104,662.82,662.32,1.17134372]
[1746935764141,0.30174104,662.82,662.33,1.17134372]
[1746935764544,0.30174104,662.82,662.34,1.17134372]
[1746935765244,0.30174104,662.82,662.35,1.17134372]
[1746935765848,0.30174104,662.82,662.28,0.338]
[1746935766345,0.30174104,662.82,662.29,1.17023629]
[1746935766843,0.30174104,662.82,662.3,1.17023629]
[1746935767344,0.30174104,662.82,662.31,1.17023629]
[1746935767840,0.30174104,662.82,662.32,1.17023629]
[1746935768145,0.30174104,662.82,662.33,1.17023629]
[1746935768539,0.30174104,662.82,662.34,1.17023629]
[1746935769140,0.30174104,662.82,662.28,0.338]
[1746935769742,0.30174104,662.82,662.29,1.16961963]
[1746935770142,0.30174104,662.82,662.28,0.338]
[1746935770143,0.30174104,662.82,662.3,1.16961963]
[1746935770339,0.30174104,662.82,662.31,1.16961963]
[1746935770945,0.30174104,662.82,662.32,1.16961963]
[1746935771745,0.30174104,662.82,662.28,0.338]
[1746935772244,0.2457388,662.81,662.28,0.338]
[1746935772448,0.2457388,662.81,662.29,1.1693092]
[1746935772642,0.2457388,662.81,662.3,1.1693092]
[1746935773345,0.2457388,662.81,662.31,1.1693092]
[1746935773748,0.2457388,662.81,662.28,0.338]
[1746935774146,0.2457388,662.81,662.29,1.16908068]
[1746935774948,0.2457388,662.81,662.28,0.338]
[1746935774949,0.2457388,662.81,662.3,1.16908068]
[1746935775443,0.2457388,662.81,662.28,0.338]
[1746935776149,0.2457388,662.81,662.29,1.16885341]
[1746935776851,0.2457388,662.81,662.3,1.16885341]
[1746935777850,0.2457388,662.81,662.28,0.338]
[1746935778147,0.2457388,662.81,662.29,1.16874922]
[1746935778752,0.2457388,662.81,662.28,0.338]
[1746935778946,0.2457388,662.81,662.29,1.16868146]
[1746935779143,0.2457388,662.81,662.28,0.338]
[1746935779545,0.2457388,662.81,662.29,1.16865264]
[1746935779745,0.2457388,662.81,662.28,0.338]
[1746935780552,0.2457388,662.81,662.29,1.16875761]
[1746935781049,0.2457388,662.81,662.28,0.338]
[1746935781752,0.2457388,662.81,662.29,1.16871877]
[1746935782554,0.2457388,662.81,662.3,1.16871877]
[1746935782747,0.2457388,662.81,662.28,0.338]
[1746935783156,0.2457388,662.81,662.29,1.1687326]
[1746935783554,0.2457388,662.81,662.3,1.1687326]
[1746935783855,0.2457388,662.81,662.28,0.338]
[1746935784056,0.2457388,662.81,662.29,1.16871935]
[1746935784456,0.2457388,662.81,662.3,1.16871935]
[1746935784956,0.2457388,662.81,662.31,1.16871935]
[1746935785355,0.2457388,662.81,662.32,1.16871935]
[1746935785656,0.30174104,662.82,662.32,1.16871935]
[1746935785852,0.30174104,662.82,662.28,0.338]
[1746935786251,0.30174104,662.82,662.29,1.1687086]
[1746935786456,0.30174104,662.82,662.3,1.1687086]
[1746935787055,0.30174104,662.82,662.31,1.1687086]
[1746935787257,0.24576814,662.81,662.31,1.1687086]
[1746935787457,0.24576814,662.81,662.32,1.1687086]
[1746935787757,0.24576814,662.81,662.21,0.26259593]
[1746935788054,0.24576814,662.81,662.23,1.16889046]
[1746935788759,0.24576814,662.81,662.24,1.16889046]
[1746935789458,0.24576814,662.81,662.25,1.16889046]
[1746935789860,0.24576814,662.81,662.26,0.325]
[1746935790054,0.24576814,662.81,662.27,1.16889046]
[1746935790459,0.24576814,662.81,662.28,1.16889046]
[1746935790860,0.30174104,662.82,662.28,1.16889046]
[1746935791160,0.30174104,662.82,662.29,1.16889046]
[1746935791659,0.30174104,662.82,662.3,1.16889046]
[1746935791852,0.30174104,662.82,662.31,1.16918495]
[1746935792159,0.2457999,662.81,662.31,1.16918495]
[1746935792359,0.2457999,662.81,662.32,1.16918495]
[1746935792654,0.2457999,662.81,662.33,1.16918495]
[1746935793059,0.30174104,662.82,662.33,1.16918495]
[1746935793255,0.24580469,662.81,662.26,0.325]
[1746935793759,0.24580469,662.81,662.27,1.16941274]
[1746935794161,0.24580469,662.81,662.28,1.16941274]
[1746935794862,0.24580469,662.81,662.29,1.16941274]
[1746935795162,0.24580469,662.81,662.3,1.16941274]
[1746935795562,0.24580469,662.81,662.31,1.16941274]
[1746935795863,0.24580469,662.81,662.32,1.16941274]
[1746935796063,0.24580469,662.81,662.33,1.16941274]
[1746935796260,0.24580469,662.81,662.34,1.16941274]
[1746935796462,0.24580469,662.81,662.35,1.16941274]
[1746935796758,0.24580469,662.81,662.26,0.325]
[1746935799061,0.30174104,662.82,662.26,0.325]
[1746935799764,0.24590466,662.81,662.26,0.325]
[1746935802067,0.30174104,662.82,662.26,0.325]
[1746935802365,0.30174104,662.82,662.27,1.16919672]
[1746935802563,0.30174104,662.82,662.28,1.16919672]
[1746935803065,0.30174104,662.82,662.29,1.16919672]
[1746935803365,0.30174104,662.82,662.3,1.16919672]
[1746935803966,0.30174104,662.82,662.31,1.16919672]
[1746935804565,0.30174104,662.82,662.32,1.16919672]
[1746935805165,0.30174104,662.82,662.33,1.16919672]
[1746935805461,0.30174104,662.82,662.34,1.16919672]
[1746935805961,0.30174104,662.82,662.35,1.16919672]
[1746935806366,0.30174104,662.82,662.26,0.325]
[1746935807366,0.30174104,662.82,662.27,1.16882332]
[1746935807767,0.30174104,662.82,662.28,1.16882332]
[1746935808167,0.30174104,662.82,662.29,1.16882332]
[1746935808667,0.30174104,662.82,662.3,1.16882332]
[1746935809170,0.30174104,662.82,662.31,1.16882332]
[1746935809662,0.30174104,662.82,662.32,1.16882332]
[1746935810368,0.30174104,662.82,662.33,1.16882332]
[1746935810667,0.30174104,662.82,662.34,1.16882332]
[1746935811062,0.30174104,662.82,662.35,1.16882332]
[1746935811468,0.30174104,662.82,662.36,1.16882332]
[1746935811968,0.30174104,662.82,662.37,1.16882332]
[1746935812469,0.30174104,662.82,662.38,1.16882332]
[1746935812767,0.30174104,662.82,662.26,0.325]
[1746935812968,0.30174104,662.82,662.27,1.17006092]
[1746935813268,0.30174104,662.82,662.28,1.17006092]
[1746935814071,0.30174104,662.82,662.29,1.17006092]
[1746935814471,0.30174104,662.82,662.3,1.17006092]
[1746935814972,0.30174104,662.82,662.31,1.17006092]
[1746935815371,0.30174104,662.82,662.32,1.17006092]
[1746935815972,0.30174104,662.82,662.33,1.17006092]
[1746935816273,0.30174104,662.82,662.34,1.17006092]
[1746935816568,0.30174104,662.82,662.35,1.17006092]
[1746935816868,0.30174104,662.82,662.36,1.17006092]
[1746935817369,0.30174104,662.82,662.37,1.17006092]
[1746935817873,0.30174104,662.82,662.38,1.17006092]
[1746935818274,0.30174104,662.82,662.39,1.17006092]
[1746935818978,0.30174104,662.82,662.4,1.17006092]
[1746935819373,0.30174104,662.82,662.3,0.314]
[1746935819571,0.30174104,662.82,662.41,1.17323048]
[1746935819772,0.30174104,662.82,662.31,1.17323048]